[Event "EYTCC U12 Girls 2018"]
[Site "Bad Blankeburg"]
[Date "2018.07.16"]
[Round "8"]
[White "Cornileau, Juliette"]
[Black "Pohle, Saskia"]
[Result "1-0"]
[ECO "C47"]
[WhiteElo "1644"]
[BlackElo "1560"]
[Annotator "NA"]
[PlyCount "93"]
[EventDate "2018.07.12"]
[EventType "swiss"]
[EventCountry "GER"]
[SourceTitle "playchess.com"]
[Source "ChessBase"]
[SourceQuality "1"]
[TimeControl "40/5400+30:1800+30"]

1. e4 {[%emt 0:00:00]} e5 {[%emt 0:00:00]} 2. Nf3 {[%emt 0:00:00]} Nc6 {[%emt 0:00:00]} 3. Nc3 {[%emt 0:00:00]} Nf6 {[%emt 0:00:00]} 4. d4 {[%emt 0:00:00]} exd4 {[%emt 0:00:00]} 5. Nxd4 {[%emt 0:00:00]} Bc5 {[%emt 0:00:00]} 6. Be3 {[%emt 0:00:21]} Bb6 {[%emt 0:00:03]} 7. Nxc6 {[%emt 0:03:54]} bxc6 {[%emt 0:00:39]} 8. Bxb6 {[%emt 0:00:33]} cxb6 {[%emt 0:00:26]} 9. Bd3 {[%emt 0:02:22]} O-O {[%emt 0:00:47]} 10. O-O {[%emt 0:00:29]} Qc7 {[%emt 0:01:41]} 11. h3 {[%emt 0:05:12]} Bb7 {[%emt 0:02:16]} 12. Re1 {[%emt 0:02:41]} Rfe8 {[%emt 0:01:05]} 13. Qd2 {[%emt 0:02:57]} Rad8 {[%emt 0:03:34]} 14. Qg5 {[%emt 0:08:28]} h6 {[%emt 0:09:22]} 15. Qh4 {[%emt 0:10:02]} d6 {[%emt 0:07:11]} 16. Rad1 {[%emt 0:14:48]} Rd7 {[%emt 0:06:22]} 17. f3 {[%emt 0:14:19]} Rde7 {[%emt 0:06:22]} 18. Re2 {[%emt 0:12:31]} a6 {[%emt 0:03:55]} 19. Red2 {[%emt 0:03:23]} c5 {[%emt 0:01:51]} 20. Bf1 {[%emt 0:01:02]} Rd7 {[%emt 0:03:26]} 21. Bc4 {[%emt 0:04:00]} b5 {[%emt 0:01:10]} 22. Nd5 {[%emt 0:00:40]} Nxd5 {[%emt 0:00:43]} 23. Bxd5 {[%emt 0:00:09]} Bxd5 {[%emt 0:00:05]} 24. Rxd5 {[%emt 0:00:11]} Re5 {[%emt 0:00:19]} 25. Qg4 {[%emt 0:02:14]} Rxd5 {[%emt 0:01:50]} 26. Rxd5 {[%emt 0:00:16]} Re7 {[%emt 0:00:25]} 27. Qf4 {[%emt 0:01:02]} Re5 {[%emt 0:00:12]} 28. Qd2 {[%emt 0:00:56]} Rxd5 {[%emt 0:00:07]} 29. Qxd5 {[%emt 0:00:15]} Kf8 {[%emt 0:01:01]} 30. Qa8+ {[%emt 0:00:39]} Ke7 {[%emt 0:00:15]} 31. Qxa6 {[%emt 0:00:41]} Qd7 {[%emt 0:00:44]} 32. Qa8 {[%emt 0:00:44]} Qe6 {[%emt 0:00:42]} 33. Qb7+ {[%emt 0:01:02]} Qd7 {[%emt 0:00:09]} 34. Qxd7+ {[%emt 0:02:23]} Kxd7 {[%emt 0:00:06]} 35. Kf2 {[%emt 0:00:15]} Ke6 {[%emt 0:00:09]} 36. Ke3 {[%emt 0:00:12]} d5 {[%emt 0:00:25]} 37. exd5+ {[%emt 0:00:31]} Kxd5 {[%emt 0:00:24]} 38. Kd3 {[%emt 0:00:47]} c4+ {[%emt 0:00:26]} 39. Ke3 {[%emt 0:06:38]} Ke5 {[%emt 0:02:06]} 40. b3 {[%emt 0:01:18]} cxb3 {[%emt 0:00:31]} 41. cxb3 {[%emt 0:30:24]} Kd5 {[%emt 0:30:10]} 42. a4 {[%emt 0:00:00]} bxa4 {[%emt 0:00:00]} 43. bxa4 {[%emt 0:00:00]} Kc5 {[%emt 0:00:00]} 44. Ke4 {[%emt 0:00:00]} Kb4 {[%emt 0:00:00]} 45. Ke5 {[%emt 0:00:00]} Kxa4 {[%emt 0:00:00]} 46. Kd6 {[%emt 0:00:00]} Kb4 {[%emt 0:00:00]} 47. Ke7 {[%emt 0:00:00]} 1-0

[Event "EYTCC U12 Girls 2018"]
[Site "Bad Blankeburg"]
[Date "2018.07.16"]
[Round "8"]
[White "Voriskova, Anna"]
[Black "Markus, Molli Amina"]
[Result "1/2-1/2"]
[ECO "C07"]
[WhiteElo "1569"]
[BlackElo "1566"]
[Annotator "NA"]
[PlyCount "86"]
[EventDate "2018.07.12"]
[EventType "swiss"]
[EventCountry "GER"]
[SourceTitle "playchess.com"]
[Source "ChessBase"]
[SourceQuality "1"]
[TimeControl "40/5400+30:1800+30"]

1. e4 {[%emt 0:00:00]} e6 {[%emt 0:00:00]} 2. d4 {[%emt 0:00:00]} d5 {[%emt 0:00:09]} 3. Nd2 {[%emt 0:00:00]} c5 {[%emt 0:00:52]} 4. exd5 {[%emt 0:00:21]} Qxd5 {[%emt 0:00:53]} 5. Ngf3 {[%emt 0:00:20]} cxd4 {[%emt 0:01:00]} 6. Bc4 {[%emt 0:01:44]} Qd6 {[%emt 0:01:43]} 7. O-O {[%emt 0:01:04]} Nf6 {[%emt 0:01:10]} 8. Nb3 {[%emt 0:01:18]} Nc6 {[%emt 0:01:47]} 9. Nbxd4 {[%emt 0:05:02]} Nxd4 {[%emt 0:01:17]} 10. Nxd4 {[%emt 0:01:03]} a6 {[%emt 0:00:18]} 11. Bg5 {[%emt 0:02:26]} Be7 {[%emt 0:04:18]} 12. Bb3 {[%emt 0:01:28]} O-O {[%emt 0:01:59]} 13. Re1 {[%emt 0:01:32]} h6 {[%emt 0:02:11]} 14. Bh4 {[%emt 0:01:56]} Rd8 {[%emt 0:05:51]} 15. c3 {[%emt 0:04:30]} Qf4 {[%emt 0:09:11]} 16. Bg3 {[%emt 0:04:19]} Qg4 {[%emt 0:04:09]} 17. h3 {[%emt 0:08:13]} Qxd1 {[%emt 0:00:37]} 18. Raxd1 {[%emt 0:00:35]} Bd7 {[%emt 0:07:18]} 19. Nf5 {[%emt 0:06:42]} Kf8 {[%emt 0:07:10]} 20. Nxe7 {[%emt 0:02:29]} Kxe7 {[%emt 0:00:20]} 21. Rd2 {[%emt 0:05:34]} Bc6 {[%emt 0:02:03]} 22. Red1 {[%emt 0:06:11]} Rxd2 {[%emt 0:01:12]} 23. Rxd2 {[%emt 0:00:21]} Ne4 {[%emt 0:00:31]} 24. Rd3 {[%emt 0:01:40]} Nxg3 {[%emt 0:00:46]} 25. Rxg3 {[%emt 0:00:30]} g5 {[%emt 0:02:09]} 26. Rd3 {[%emt 0:06:19]} Rd8 {[%emt 0:01:32]} 27. Rxd8 {[%emt 0:02:08]} Kxd8 {[%emt 0:00:06]} 28. g3 {[%emt 0:04:37]} Ke7 {[%emt 0:01:13]} 29. Kf1 {[%emt 0:00:44]} f6 {[%emt 0:01:45]} 30. Ke2 {[%emt 0:00:41]} Bg2 {[%emt 0:01:13]} 31. h4 {[%emt 0:00:34]} gxh4 {[%emt 0:00:25]} 32. gxh4 {[%emt 0:00:10]} e5 {[%emt 0:02:16]} 33. f3 {[%emt 0:02:21]} Bh3 {[%emt 0:01:15]} 34. Bd5 {[%emt 0:01:04]} b6 {[%emt 0:01:19]} 35. a4 {[%emt 0:02:06]} a5 {[%emt 0:01:04]} 36. b4 {[%emt 0:01:36]} Kd6 {[%emt 0:04:32]} 37. Bc4 {[%emt 0:01:13]} Be6 {[%emt 0:05:30]} 38. Bd3 {[%emt 0:08:13]} Bb3 {[%emt 0:05:33]} 39. Bb5 {[%emt 0:01:37]} Kd5 {[%emt 0:05:16]} 40. Kd3 {[%emt 0:01:58]} Bd1 {[%emt 0:03:18]} 41. Ke3 {[%emt 0:31:34]} Bb3 {[%emt 0:31:00]} 42. Kd3 {[%emt 0:00:37]} Bd1 {[%emt 0:02:34]} 43. Ke3 {[%emt 0:00:50]} Bb3 {[%emt 0:00:23] Ke4+} 1/2-1/2

[Event "EYTCC U12 Girls 2018"]
[Site "Bad Blankeburg"]
[Date "2018.07.16"]
[Round "8"]
[White "Peglau, Charis"]
[Black "Pentcheff, Laura"]
[Result "0-1"]
[ECO "C42"]
[WhiteElo "1396"]
[BlackElo "1594"]
[Annotator "NA"]
[PlyCount "96"]
[EventDate "2018.07.12"]
[EventType "swiss"]
[EventCountry "GER"]
[SourceTitle "playchess.com"]
[Source "ChessBase"]
[SourceQuality "1"]
[TimeControl "40/5400+30:1800+30"]

1. e4 {[%emt 0:00:00]} e5 {[%emt 0:00:00]} 2. Nf3 {[%emt 0:00:00]} Nf6 {[%emt 0:00:00]} 3. Nc3 {[%emt 0:00:00]} Bb4 {[%emt 0:00:04]} 4. Nd5 {[%emt 0:00:00]} Nxd5 {[%emt 0:00:31]} 5. exd5 {[%emt 0:00:08]} O-O {[%emt 0:00:58]} 6. c3 {[%emt 0:00:52]} Bc5 {[%emt 0:01:34]} 7. d4 {[%emt 0:01:04]} exd4 {[%emt 0:00:35]} 8. Nxd4 {[%emt 0:00:15]} Re8+ {[%emt 0:00:58]} 9. Be3 {[%emt 0:00:28]} Qg5 {[%emt 0:05:17]} 10. c4 {[%emt 0:09:32]} Rxe3+ {[%emt 0:03:22]} 11. fxe3 {[%emt 0:00:59]} Qxe3+ {[%emt 0:00:39]} 12. Qe2 {[%emt 0:00:54]} Bxd4 {[%emt 0:00:26]} 13. Qxe3 {[%emt 0:00:22]} Bxe3 {[%emt 0:00:05]} 14. Bd3 {[%emt 0:01:08]} d6 {[%emt 0:01:19]} 15. h3 {[%emt 0:00:17]} Bd7 {[%emt 0:01:40]} 16. Ke2 {[%emt 0:04:25]} Bd4 {[%emt 0:01:22]} 17. Rab1 {[%emt 0:02:55]} Na6 {[%emt 0:01:52]} 18. a3 {[%emt 0:05:18]} Re8+ {[%emt 0:01:45]} 19. Kd1 {[%emt 0:02:03]} Re3 {[%emt 0:04:44]} 20. Bc2 {[%emt 0:01:11]} f5 {[%emt 0:02:51]} 21. Re1 {[%emt 0:04:05]} f4 {[%emt 0:03:20]} 22. Rxe3 {[%emt 0:03:32]} fxe3 {[%emt 0:00:34]} 23. Ke2 {[%emt 0:00:40]} b5 {[%emt 0:01:07]} 24. b3 {[%emt 0:02:25]} c6 {[%emt 0:04:23]} 25. Be4 {[%emt 0:04:56]} cxd5 {[%emt 0:05:03]} 26. Bxd5+ {[%emt 0:01:34]} Kf8 {[%emt 0:01:23]} 27. Rf1+ {[%emt 0:00:52]} Ke8 {[%emt 0:01:16]} 28. Rf7 {[%emt 0:01:04]} Nc7 {[%emt 0:01:24]} 29. Rf4 {[%emt 0:04:19]} Bb6 {[%emt 0:01:49]} 30. Re4+ {[%emt 0:01:23]} Kd8 {[%emt 0:01:03]} 31. Bg8 {[%emt 0:04:41]} h6 {[%emt 0:01:20]} 32. g4 {[%emt 0:16:52]} a5 {[%emt 0:01:56]} 33. h4 {[%emt 0:04:35]} Bc5 {[%emt 0:00:58]} 34. g5 {[%emt 0:01:54]} hxg5 {[%emt 0:00:41]} 35. hxg5 {[%emt 0:00:15]} Bf5 {[%emt 0:02:23]} 36. Rf4 {[%emt 0:00:47]} g6 {[%emt 0:00:21]} 37. Rh4 {[%emt 0:02:52]} bxc4 {[%emt 0:02:22]} 38. Bxc4 {[%emt 0:05:44]} d5 {[%emt 0:02:17]} 39. Bd3 {[%emt 0:01:31]} Bxd3+ {[%emt 0:00:22]} 40. Kxd3 {[%emt 0:00:12]} Ne6 {[%emt 0:01:01]} 41. b4 {[%emt 0:32:10]} axb4 {[%emt 0:30:39]} 42. axb4 {[%emt 0:00:12]} Bb6 {[%emt 0:01:22]} 43. Rg4 {[%emt 0:03:06]} d4 {[%emt 0:01:12]} 44. Ke2 {[%emt 0:01:46]} Kd7 {[%emt 0:00:31]} 45. Kd3 {[%emt 0:00:20]} Kc6 {[%emt 0:00:24]} 46. Re4 {[%emt 0:01:35]} Nxg5 {[%emt 0:01:29]} 47. Re5 {[%emt 0:00:11]} Nh3 {[%emt 0:01:46]} 48. Kc4 {[%emt 0:01:22]} Nf4 {[%emt 0:01:15] Kxd4} 0-1

[Event "EYTCC U12 Girls 2018"]
[Site "Bad Blankeburg"]
[Date "2018.07.17"]
[Round "9"]
[White "Bashylina, Luisa"]
[Black "Cornileau, Juliette"]
[Result "1-0"]
[ECO "B30"]
[WhiteElo "1836"]
[BlackElo "1644"]
[Annotator "NA"]
[PlyCount "111"]
[EventDate "2018.07.12"]
[EventType "swiss"]
[EventCountry "GER"]
[SourceTitle "playchess.com"]
[Source "ChessBase"]
[SourceQuality "1"]
[TimeControl "40/5400+30:1800+30"]

1. e4 {[%emt 0:00:00]} c5 {[%emt 0:00:00]} 2. Nf3 {[%emt 0:00:00]} Nc6 {[%emt 0:00:00]} 3. Bb5 {[%emt 0:00:00]} d6 {[%emt 0:00:52]} 4. d4 {[%emt 0:00:09]} cxd4 {[%emt 0:00:16]} 5. Qxd4 {[%emt 0:00:16]} Bd7 {[%emt 0:01:01]} 6. Bxc6 {[%emt 0:00:09]} Bxc6 {[%emt 0:00:30]} 7. Nc3 {[%emt 0:00:07]} e5 {[%emt 0:00:42]} 8. Qd3 {[%emt 0:00:07]} h6 {[%emt 0:00:41]} 9. O-O {[%emt 0:09:15]} Be7 {[%emt 0:06:17]} 10. a4 {[%emt 0:04:09]} Nf6 {[%emt 0:06:09]} 11. b3 {[%emt 0:06:28]} O-O {[%emt 0:02:20]} 12. Ba3 {[%emt 0:04:04]} Qd7 {[%emt 0:13:01]} 13. Rfd1 {[%emt 0:10:43]} Rfd8 {[%emt 0:07:29]} 14. Rd2 {[%emt 0:06:55]} b6 {[%emt 0:05:17]} 15. Re1 {[%emt 0:14:07]} Qb7 {[%emt 0:03:34]} 16. b4 {[%emt 0:02:02]} Qc7 {[%emt 0:12:27]} 17. b5 {[%emt 0:03:55]} Bb7 {[%emt 0:00:39]} 18. Rdd1 {[%emt 0:10:31]} Rac8 {[%emt 0:09:19]} 19. Bb2 {[%emt 0:04:51]} Qc5 {[%emt 0:06:42]} 20. Qe3 {[%emt 0:05:33]} Ng4 {[%emt 0:06:26]} 21. Qxc5 {[%emt 0:00:43]} Rxc5 {[%emt 0:00:20]} 22. Nd2 {[%emt 0:03:18]} Rdc8 {[%emt 0:01:39]} 23. Ndb1 {[%emt 0:01:08]} Nf6 {[%emt 0:04:21]} 24. f3 {[%emt 0:02:18]} a6 {[%emt 0:05:04]} 25. Rd3 {[%emt 0:01:42]} R5c7 {[%emt 0:02:34]} 26. Red1 {[%emt 0:04:31]} Rd7 {[%emt 0:01:06]} 27. Ba3 {[%emt 0:00:47]} Rcd8 {[%emt 0:02:59]} 28. Kf2 {[%emt 0:00:44]} Bf8 {[%emt 0:00:41]} 29. Bb2 {[%emt 0:00:51]} d5 {[%emt 0:01:01]} 30. exd5 {[%emt 0:00:25]} Nxd5 {[%emt 0:00:30]} 31. Nxd5 {[%emt 0:00:05]} Rxd5 {[%emt 0:00:36]} 32. Bxe5 {[%emt 0:01:36]} Rxd3 {[%emt 0:00:21]} 33. Rxd3 {[%emt 0:00:27]} Rxd3 {[%emt 0:00:07]} 34. cxd3 {[%emt 0:00:04]} axb5 {[%emt 0:00:28]} 35. axb5 {[%emt 0:00:06]} f6 {[%emt 0:00:50]} 36. Bd4 {[%emt 0:00:27]} Bc5 {[%emt 0:00:28]} 37. Bxc5 {[%emt 0:00:19]} bxc5 {[%emt 0:00:10]} 38. Nc3 {[%emt 0:00:14]} Kf7 {[%emt 0:01:22]} 39. Na4 Ke7 {[%emt 0:00:25]} 40. Nxc5 {[%emt 0:01:12]} Bc8 {[%emt 0:00:41]} 41. b6 {[%emt 0:30:40]} Kd6 {[%emt 0:00:56]} 42. b7 {[%emt 0:00:00]} Bxb7 {[%emt 0:00:05]} 43. Nxb7+ {[%emt 0:00:00]} Kd5 {[%emt 0:00:09]} 44. Ke3 {[%emt 0:00:00]} g5 {[%emt 0:00:54]} 45. Na5 {[%emt 0:00:00]} f5 {[%emt 0:00:27]} 46. f4 {[%emt 0:00:00]} g4 {[%emt 0:01:08]} 47. d4 {[%emt 0:00:00]} h5 {[%emt 0:01:01]} 48. g3 {[%emt 0:00:00]} Ke6 {[%emt 0:00:11]} 49. Kd2 {[%emt 0:00:00]} Kd6 {[%emt 0:00:34]} 50. Kc3 {[%emt 0:00:00]} Kd5 {[%emt 0:00:44]} 51. Kd3 {[%emt 0:00:00]} Kd6 {[%emt 0:00:07]} 52. Kc4 {[%emt 0:00:00]} Ke7 {[%emt 0:00:57]} 53. Kd5 {[%emt 0:00:00]} Kd7 {[%emt 0:00:26]} 54. Ke5 {[%emt 0:00:00]} Ke7 {[%emt 0:00:17]} 55. d5 {[%emt 0:00:00]} Kf7 {[%emt 0:00:25]} 56. d6 {[%emt 0:00:00]} 1-0

[Event "EYTCC U12 Girls 2018"]
[Site "Bad Blankeburg"]
[Date "2018.07.17"]
[Round "9"]
[White "Wagner, Margarethe"]
[Black "Gaal, Zsoka"]
[Result "1/2-1/2"]
[ECO "B03"]
[WhiteElo "1635"]
[BlackElo "2044"]
[Annotator "NA"]
[PlyCount "71"]
[EventDate "2018.07.12"]
[EventType "swiss"]
[EventCountry "GER"]
[SourceTitle "playchess.com"]
[Source "ChessBase"]
[SourceQuality "1"]
[TimeControl "40/5400+30:1800+30"]

1. e4 {[%emt 0:00:00]} Nf6 {[%emt 0:00:00]} 2. e5 {[%emt 0:00:05]} Nd5 {[%emt 0:00:01]} 3. d4 {[%emt 0:00:29]} d6 {[%emt 0:00:10]} 4. exd6 {[%emt 0:03:03]} cxd6 {[%emt 0:00:35]} 5. c4 {[%emt 0:02:06]} Nb6 {[%emt 0:00:12]} 6. Nc3 {[%emt 0:01:26]} g6 {[%emt 0:00:09]} 7. Be3 {[%emt 0:01:48]} Bg7 {[%emt 0:00:21]} 8. Nf3 {[%emt 0:00:52]} O-O {[%emt 0:01:56]} 9. h3 {[%emt 0:03:05]} Bf5 {[%emt 0:04:47] B04: Aljechin-Verteidigung (Moderne Variante)} 10. Be2 {[%emt 0:01:57]} Nc6 {[%emt 0:03:55]} 11. a3 {[%emt 0:03:31]} (11. O-O d5 12. c5 Nc4 13. Bc1 b6 14. b3 N4a5 15. cxb6 axb6 16. Bf4 Be4 17. Nb5 Qd7 18. Qd2 Rfc8 19. Rac1 Nb7 20. Ne5 Nxe5 21. Bxe5 Bxe5 22. dxe5 {1-0 (37) Efimenko,Z (2643)-Bortnyk,O (2533) Wroclaw 2014}) 11... d5 {[%emt 0:06:55]} 12. c5 {[%emt 0:02:52]} Nc4 {[%emt 0:01:52]} 13. Bxc4 {[%emt 0:04:49]} dxc4 {[%emt 0:00:10]} 14. O-O $1 {[%emt 0:08:57]} Bd3 {[%emt 0:09:43]} 15. Re1 {[%emt 0:00:13]} Nxd4 $146 {[%emt 0:12:53]} ({Vorgänger:} 15... e6 16. Nb5 Ne7 17. Ne5 Bxe5 18. dxe5 Nf5 19. Nd6 b6 20. Nxf5 exf5 21. Bh6 Re8 {½-½ (34) Tlale,T (1798)-Granados,M (1899) Tromsoe 2014}) 16. Nxd4 {[%emt 0:00:37]} Bxd4 {[%emt 0:00:14]} 17. Bxd4 {[%emt 0:00:09]} Qxd4 {[%emt 0:00:08]} 18. Rxe7 {[%emt 0:01:49]} Qxc5 {[%emt 0:04:22]} 19. Rxb7 {[%emt 0:01:46]} Qc6 {[%emt 0:07:26]} 20. Re7 {[%emt 0:05:33]} Rfe8 $11 {[%emt 0:06:43]} 21. Rxe8+ {[%emt 0:04:53]} Rxe8 {[%emt 0:00:14]} 22. Qd2 {[%emt 0:02:32]} Qb7 {[%emt 0:04:59]} 23. b4 {[%emt 0:10:01]} Qe7 {[%emt 0:04:02]} 24. Qf4 {[%emt 0:03:56]} Rd8 {[%emt 0:05:26]} 25. Qe3 {[%emt 0:05:34]} Qxe3 {[%emt 0:07:15]} 26. fxe3 {[%emt 0:00:40]} Bf5 {[%emt 0:02:18]} 27. Rd1 {[%emt 0:00:52]} Re8 {[%emt 0:03:21]} 28. Kf2 {[%emt 0:01:55]} Kg7 {[%emt 0:02:39]} 29. Rd5 {[%emt 0:04:14]} Be6 {[%emt 0:03:19]} 30. Rd4 {[%emt 0:06:59]} Rb8 {[%emt 0:01:16]} 31. Ke2 {[%emt 0:02:25]} h5 {[%emt 0:01:53]} 32. Kd2 {[%emt 0:02:48]} Kf8 {[%emt 0:00:45]} 33. Ne4 {[%emt 0:05:03]} a5 {[%emt 0:00:59]} 34. bxa5 {[%emt 0:02:24]} Ra8 {[%emt 0:00:46]} 35. Nc5 {[%emt 0:02:03]} Rxa5 {[%emt 0:00:31]} 36. Nxe6+ {[%emt 0:00:14] Ra4 h4+} 1/2-1/2

[Event "EYTCC U12 Girls 2018"]
[Site "Bad Blankeburg"]
[Date "2018.07.17"]
[Round "9"]
[White "Pentcheff, Laura"]
[Black "Butenandt, Svenja"]
[Result "0-1"]
[ECO "A46"]
[WhiteElo "1594"]
[BlackElo "1751"]
[Annotator "NA"]
[PlyCount "112"]
[EventDate "2018.07.12"]
[EventType "swiss"]
[EventCountry "GER"]
[SourceTitle "playchess.com"]
[Source "ChessBase"]
[SourceQuality "1"]
[TimeControl "40/5400+30:1800+30"]

1. d4 {[%emt 0:00:00]} Nf6 {[%emt 0:00:00]} 2. Nf3 {[%emt 0:00:00]} e6 {[%emt 0:00:00]} 3. Bf4 {[%emt 0:00:15]} d5 {[%emt 0:00:00]} 4. e3 {[%emt 0:00:19]} Be7 {[%emt 0:00:20]} 5. Bd3 {[%emt 0:00:34]} Nbd7 {[%emt 0:00:41]} 6. O-O {[%emt 0:00:37]} O-O {[%emt 0:00:05]} 7. Nbd2 {[%emt 0:01:01]} c5 {[%emt 0:02:29]} 8. c3 {[%emt 0:00:38]} cxd4 {[%emt 0:03:16]} 9. exd4 {[%emt 0:01:54]} a6 {[%emt 0:02:18]} 10. Ne5 {[%emt 0:01:02]} Nb6 {[%emt 0:09:07]} 11. Qf3 {[%emt 0:18:43]} Re8 {[%emt 0:13:47]} 12. Qh3 {[%emt 0:10:40]} g6 {[%emt 0:03:19]} 13. Ndf3 {[%emt 0:10:48]} Nh5 {[%emt 0:11:20]} 14. Bh6 {[%emt 0:02:02]} Bf8 {[%emt 0:02:14]} 15. Nxf7 {[%emt 0:24:45]} Kxf7 {[%emt 0:07:32]} 16. Ne5+ {[%emt 0:00:17]} Kg8 {[%emt 0:08:56]} 17. Nxg6 {[%emt 0:06:49]} hxg6 {[%emt 0:00:54]} 18. Bxg6 {[%emt 0:00:15]} Bxh6 {[%emt 0:01:18]} 19. Qxh5 {[%emt 0:00:18]} Re7 {[%emt 0:00:29]} 20. Qxh6 {[%emt 0:00:13]} Rg7 {[%emt 0:01:06]} 21. Bc2 {[%emt 0:01:52]} Qg5 {[%emt 0:01:04]} 22. Qxg5 {[%emt 0:00:11]} Rxg5 {[%emt 0:00:04]} 23. h4 {[%emt 0:01:03]} Rg4 {[%emt 0:00:24]} 24. g3 {[%emt 0:00:11]} Nc4 {[%emt 0:00:51]} 25. b3 {[%emt 0:01:28]} Nd6 {[%emt 0:03:48]} 26. Kg2 {[%emt 0:04:13]} Nb5 {[%emt 0:02:17]} 27. Bd1 {[%emt 0:02:21]} Rg7 {[%emt 0:00:13]} 28. Rc1 Rc7 {[%emt 0:00:22]} 29. h5 {[%emt 0:02:02]} Rxc3 {[%emt 0:01:19]} 30. Rxc3 {[%emt 0:01:08]} Nxc3 {[%emt 0:00:06]} 31. Bc2 {[%emt 0:00:29]} Nxa2 {[%emt 0:00:36]} 32. h6 {[%emt 0:01:09]} Nb4 {[%emt 0:00:49]} 33. Bb1 {[%emt 0:00:23]} Nc6 {[%emt 0:01:03]} 34. Rd1 {[%emt 0:00:46]} Ne7 {[%emt 0:01:24]} 35. g4 {[%emt 0:00:55]} e5 {[%emt 0:03:30]} 36. g5 {[%emt 0:00:37]} e4 {[%emt 0:00:49]} 37. Rh1 {[%emt 0:02:05]} Bf5 {[%emt 0:00:42]} 38. Kg3 {[%emt 0:01:05]} Nc6 {[%emt 0:05:00]} 39. Rd1 {[%emt 0:01:05]} Rf8 {[%emt 0:01:35]} 40. Kh4 {[%emt 0:02:33]} Bg6 {[%emt 0:01:08]} 41. Kg3 {[%emt 0:30:47]} Rf3+ {[%emt 0:30:35]} 42. Kg2 {[%emt 0:00:23]} Rf5 {[%emt 0:02:55]} 43. Kg3 {[%emt 0:01:17]} Rxg5+ {[%emt 0:00:14]} 44. Kf4 {[%emt 0:00:38]} Rh5 {[%emt 0:02:41]} 45. f3 {[%emt 0:00:59]} Rf5+ {[%emt 0:04:46]} 46. Kg4 {[%emt 0:00:48]} Rxf3 {[%emt 0:00:27]} 47. Kg5 {[%emt 0:00:37]} Kh7 {[%emt 0:00:39]} 48. Kg4 {[%emt 0:01:01]} Kxh6 {[%emt 0:01:01]} 49. Rh1+ {[%emt 0:00:19]} Kg7 {[%emt 0:00:07]} 50. Rd1 {[%emt 0:00:15]} Rxb3 {[%emt 0:02:12]} 51. Ba2 {[%emt 0:00:22]} Rd3 {[%emt 0:01:23]} 52. Rxd3 {[%emt 0:00:48]} exd3 {[%emt 0:00:06]} 53. Bxd5 {[%emt 0:00:08]} d2 {[%emt 0:00:13]} 54. Bb3 {[%emt 0:00:24]} Nxd4 {[%emt 0:00:07]} 55. Bd1 {[%emt 0:00:07]} Bc2 {[%emt 0:00:17]} 56. Bxc2 {[%emt 0:00:10]} Nxc2 0-1

[Event "EYTCC U12 Girls 2018"]
[Site "Bad Blankeburg"]
[Date "2018.07.17"]
[Round "9"]
[White "Markus, Molli Amina"]
[Black "Lorenz, Anouk"]
[Result "1-0"]
[ECO "A10"]
[WhiteElo "1566"]
[BlackElo "1390"]
[Annotator "NA"]
[PlyCount "79"]
[EventDate "2018.07.12"]
[EventType "swiss"]
[EventCountry "GER"]
[SourceTitle "playchess.com"]
[Source "ChessBase"]
[SourceQuality "1"]
[TimeControl "40/5400+30:1800+30"]

1. c4 {[%emt 0:00:00]} f5 {[%emt 0:00:00]} 2. Nc3 {[%emt 0:00:23]} Nf6 {[%emt 0:00:24]} 3. Nf3 {[%emt 0:01:14]} g6 {[%emt 0:00:49]} 4. d4 {[%emt 0:01:31]} Bg7 {[%emt 0:01:01]} 5. e3 {[%emt 0:01:27]} O-O {[%emt 0:01:18]} 6. Bd3 {[%emt 0:02:06]} d6 {[%emt 0:01:23]} 7. d5 {[%emt 0:01:58]} Na6 {[%emt 0:02:24]} 8. Nd4 {[%emt 0:03:07]} Nc5 {[%emt 0:02:11]} 9. Qc2 {[%emt 0:02:46]} a5 {[%emt 0:05:26]} 10. Nf3 {[%emt 0:05:44]} e6 {[%emt 0:09:25]} 11. dxe6 {[%emt 0:02:34]} Bxe6 {[%emt 0:00:46]} 12. O-O {[%emt 0:02:57]} Re8 {[%emt 0:08:45]} 13. e4 {[%emt 0:07:28]} Nxd3 {[%emt 0:18:24]} 14. Qxd3 {[%emt 0:00:15]} fxe4 {[%emt 0:00:42]} 15. Nxe4 {[%emt 0:00:34]} Bf5 {[%emt 0:08:28]} 16. Nxf6+ {[%emt 0:01:42]} Bxf6 {[%emt 0:00:30]} 17. Qd2 {[%emt 0:05:02]} Qd7 {[%emt 0:09:00]} 18. Nd4 {[%emt 0:04:31]} Re4 {[%emt 0:05:21]} 19. Nxf5 {[%emt 0:02:25]} Qxf5 {[%emt 0:00:44]} 20. Qd3 {[%emt 0:02:43]} a4 {[%emt 0:05:24]} 21. Rb1 {[%emt 0:02:44]} Qe6 {[%emt 0:03:29]} 22. b3 {[%emt 0:01:55]} axb3 {[%emt 0:00:59]} 23. axb3 {[%emt 0:00:26]} Ra2 {[%emt 0:02:42]} 24. Be3 {[%emt 0:02:21]} Qe8 {[%emt 0:03:04]} 25. Rfe1 {[%emt 0:03:43]} Rb2 {[%emt 0:01:52]} 26. Rxb2 {[%emt 0:02:20]} Bxb2 {[%emt 0:00:12]} 27. Qd5+ {[%emt 0:02:49]} Qe6 {[%emt 0:03:57]} 28. Qxb7 {[%emt 0:05:34]} c5 {[%emt 0:01:45]} 29. Qa8+ {[%emt 0:02:19]} Kf7 {[%emt 0:00:19]} 30. Qa7+ {[%emt 0:01:21]} Kg8 {[%emt 0:00:10]} 31. Qa2 {[%emt 0:01:08]} Bc3 {[%emt 0:00:54]} 32. Re2 {[%emt 0:01:33]} Bd4 {[%emt 0:00:56]} 33. Qa8+ {[%emt 0:04:42]} Kf7 {[%emt 0:00:30]} 34. Bh6 {[%emt 0:01:50]} Kf6 {[%emt 0:02:46]} 35. Rxe4 {[%emt 0:01:45]} Qd7 {[%emt 0:00:57]} 36. Qf8+ {[%emt 0:01:03]} Qf7 {[%emt 0:00:21]} 37. Rf4+ {[%emt 0:00:48]} Ke5 {[%emt 0:00:17]} 38. Qxf7 {[%emt 0:00:13]} Bxf2+ {[%emt 0:00:46]} 39. Kxf2 {[%emt 0:00:13]} g5 {[%emt 0:00:37]} 40. Qf6# {[%emt 0:00:08]} 1-0